bitfinex/quotes_SOLUSD_20250525
["timestamp","ask_amount","ask_price","bid_price","bid_amount"]
[1748134609449,10.0,171.95,171.93,34.84]
[1748134609650,10.0,171.9,171.86,7.5572]
[1748134609827,10.0,171.9,171.87,34.84]
[1748134610636,10.0,171.93,171.87,34.84]
[1748134610824,10.0,171.94,171.87,34.84]
[1748134611266,10.0,171.93,171.87,34.84]
[1748134611560,10.0,171.92,171.87,34.84]
[1748134612041,10.0,171.91,171.87,34.84]
[1748134612241,10.0,171.9,171.87,34.84]
[1748134613228,10.0,171.9,171.88,34.82]
[1748134613428,10.0,171.9,171.86,7.5572]
[1748134613738,10.0,171.88,171.87,34.82]
[1748134616030,10.0,171.86,171.81,8.1261]
[1748134616267,10.0,171.87,171.82,34.82]
[1748134616553,10.0,171.88,171.82,34.82]
[1748134616858,10.0,171.86,171.82,34.82]
[1748134617026,10.0,171.85,171.82,34.82]
[1748134617449,10.0,171.84,171.83,217.32]
[1748134617650,10.0,171.85,171.83,58.84]
[1748134617851,10.0,171.89,171.82,34.82]
[1748134618153,10.0,171.86,171.82,34.82]
[1748134618378,10.0,171.88,171.82,34.82]
[1748134618549,10.0,171.9,171.83,0.14216157]
[1748134619325,10.0,171.91,171.83,0.14216157]
[1748134619528,10.0,171.9,171.83,0.14216157]
[1748134620336,10.0,171.89,171.83,0.14216157]
[1748134621151,0.14216157,172.03,171.83,0.14216157]
[1748134621152,10.0,171.95,171.83,44.79181043]
[1748134621353,10.0,171.92,171.83,44.79181043]
[1748134621670,10.0,171.9,171.84,26.0]
[1748134621833,10.0,171.88,171.85,34.82]
[1748134622761,10.0,171.89,171.85,34.82]
[1748134622966,10.0,171.88,171.85,34.82]
[1748134623962,10.0,171.92,171.86,0.14216157]
[1748134624764,10.0,171.95,171.86,0.14216157]
[1748134624955,30.15949221,171.99,171.86,0.14216157]
[1748134624956,10.0,171.92,171.86,0.14216157]
[1748134625162,10.0,171.92,171.85,34.82]
[1748134625352,10.0,171.88,171.85,34.82]
[1748134626271,10.0,171.87,171.81,8.1261]
[1748134626445,10.0,171.85,171.81,8.1261]
[1748134626640,10.0,171.81,171.69,6.50556157]
[1748134626839,10.0,171.84,171.72,1.567]
[1748134627066,10.0,171.85,171.76,18.64964886]
[1748134627249,10.0,171.84,171.76,18.64964886]
[1748134627448,10.0,171.84,171.77,276.14]
[1748134627647,10.0,171.84,171.78,34.82]
[1748134628267,10.0,171.86,171.78,34.82]
[1748134628444,10.0,171.85,171.78,34.82]
[1748134628960,10.0,171.83,171.78,34.82]
[1748134629162,26.0,171.92,171.75,6.3634]
[1748134629163,10.0,171.8,171.75,6.3634]
[1748134629767,10.0,171.79,171.76,34.82]
[1748134629942,10.0,171.8,171.76,34.82]
[1748134630541,10.0,171.79,171.75,6.3634]
[1748134630854,10.0,171.79,171.76,34.82]
[1748134631252,10.0,171.8,171.76,34.82]
[1748134631566,10.0,171.83,171.76,34.82]
[1748134631957,10.0,171.81,171.76,34.82]
[1748134632166,10.0,171.83,171.76,34.82]
[1748134632375,10.0,171.81,171.76,34.82]
[1748134632869,10.0,171.79,171.75,6.3634]
[1748134633054,10.0,171.76,171.72,1.567]
[1748134633243,10.0,171.74,171.73,34.84]
[1748134633449,10.0,171.72,171.67,1.5611]
[1748134633776,10.0,171.72,171.68,34.84]
[1748134633972,10.0,171.72,171.67,1.5611]
[1748134634147,10.0,171.71,171.67,1.5611]
[1748134634351,10.0,171.73,171.68,34.84]
[1748134634771,10.0,171.72,171.68,34.84]
[1748134635672,10.0,171.71,171.68,34.84]
[1748134635848,10.0,171.72,171.68,34.84]
[1748134636279,10.0,171.71,171.67,1.5611]
[1748134636476,10.0,171.7,171.68,34.84]
[1748134636682,10.0,171.72,171.69,34.84]
[1748134636857,10.0,171.72,171.7,34.84]
[1748134637058,10.0,171.74,171.7,34.84]
[1748134637473,10.0,171.73,171.71,276.26]
[1748134637657,10.0,171.72,171.71,276.26]
[1748134637857,30.15317774,171.78,171.71,276.26]
[1748134637858,10.0,171.74,171.71,276.26]
[1748134638058,10.0,171.71,171.7,34.84]
[1748134638275,10.0,171.71,171.63,0.14216157]
[1748134638276,10.0,171.7,171.63,0.14216157]
[1748134638483,10.0,171.68,171.63,0.14216157]
[1748134638784,10.0,171.68,171.64,34.84]
[1748134639159,10.0,171.68,171.62,0.14216157]
[1748134639363,10.0,171.68,171.65,34.84]
[1748134640358,10.0,171.7,171.65,34.84]
[1748134640898,10.0,171.68,171.65,34.84]
[1748134641955,10.0,171.71,171.65,34.84]
[1748134642283,30.15317774,171.78,171.65,34.84]
[1748134642284,10.0,171.7,171.65,34.84]
[1748134642669,10.0,171.71,171.65,34.84]
[1748134642970,10.0,171.7,171.65,34.84]
[1748134643168,10.0,171.67,171.61,7.7272]
[1748134643379,10.0,171.65,171.61,7.7272]
[1748134643685,10.0,171.65,171.55,0.71477475]
[1748134643686,10.0,171.64,171.58,26.0]
[1748134643979,10.0,171.64,171.59,34.86]
[1748134644279,10.0,171.61,171.6,34.86]
[1748134645181,10.0,171.61,171.55,0.71477475]
[1748134645349,10.0,171.56,171.55,0.71477475]
[1748134645550,10.0,171.56,171.55,35.57477475]
[1748134645768,10.0,171.59,171.55,35.57477475]
[1748134646078,10.0,171.61,171.55,35.57477475]
[1748134646384,10.0,171.58,171.55,35.57477475]
[1748134646676,10.0,171.61,171.55,35.57477475]
[1748134646880,10.0,171.63,171.56,0.14216157]
[1748134647065,10.0,171.6,171.55,35.57477475]
[1748134647469,10.0,171.63,171.56,275.96]
[1748134647671,10.0,171.61,171.56,275.96]
[1748134647879,10.0,171.57,171.56,58.4]
[1748134648081,10.0,171.57,171.56,93.26]
[1748134648253,10.0,171.58,171.55,0.71477475]
[1748134648567,10.0,171.58,171.56,34.86]
[1748134649472,10.0,171.57,171.56,34.86]
[1748134649982,10.0,171.59,171.56,34.86]
[1748134650280,10.0,171.58,171.56,34.86]
[1748134650491,10.0,171.59,171.56,34.86]
[1748134650886,10.0,171.6,171.56,34.86]
[1748134651186,10.0,171.63,171.57,18.64964886]
[1748134651486,10.0,171.6,171.56,34.86]
[1748134652963,10.0,171.6,171.57,34.88]
[1748134653163,10.0,171.62,171.55,0.71477475]
[1748134653388,10.0,171.6,171.56,34.88]
[1748134653769,10.0,171.62,171.56,34.88]
[1748134653974,10.0,171.6,171.56,34.88]
[1748134654595,10.0,171.62,171.56,34.88]
[1748134654766,10.0,171.6,171.56,34.88]
[1748134655484,10.0,171.59,171.56,34.88]
[1748134655667,10.0,171.56,171.55,0.71477475]
[1748134655868,10.0,171.56,171.55,35.59477475]
[1748134656697,10.0,171.56,171.55,0.71477475]
[1748134656862,10.0,171.56,171.55,35.59477475]
[1748134657487,10.0,171.56,171.55,311.65477475]
[1748134658599,10.0,171.56,171.55,59.13477475]
[1748134658769,10.0,171.56,171.55,94.01477475]
[1748134658972,10.0,171.56,171.55,35.59477475]
[1748134660490,10.0,171.58,171.55,35.59477475]
[1748134660873,10.0,171.56,171.55,35.59477475]
[1748134661292,10.0,171.57,171.55,35.59477475]
[1748134661471,10.0,171.56,171.55,35.59477475]
[1748134661667,10.0,171.63,171.57,6.664]
[1748134661868,10.0,171.63,171.59,1.5788]
[1748134662095,10.0,171.64,171.59,1.5788]
[1748134662281,10.0,171.62,171.59,1.5788]
[1748134662480,10.0,171.63,171.59,1.5788]
[1748134662700,10.0,171.62,171.59,1.5788]
[1748134663194,10.0,171.64,171.59,1.5788]
[1748134663417,10.0,171.62,171.59,1.5788]
[1748134663583,10.0,171.66,171.59,1.5788]
[1748134664098,10.0,171.68,171.6,0.14216157]
[1748134664299,10.0,171.69,171.6,18.79181043]
[1748134664503,10.0,171.67,171.6,18.79181043]
[1748134665186,10.0,171.66,171.6,0.14216157]
[1748134665385,10.0,171.66,171.61,34.88]
[1748134665585,10.0,171.64,171.62,34.88]
[1748134665881,10.0,171.64,171.59,1.5788]
[1748134666086,10.0,171.64,171.63,34.88]
[1748134666700,10.0,171.65,171.63,34.88]
[1748134666887,10.0,171.64,171.63,34.88]
[1748134667203,10.0,171.64,171.59,1.5788]
[1748134667396,19.88494517,171.69,171.59,1.5788]
[1748134667397,10.0,171.62,171.6,34.88]
[1748134667573,10.0,171.62,171.61,276.08]
[1748134668280,10.0,171.62,171.61,217.66]
[1748134668485,10.0,171.63,171.57,6.664]
[1748134668686,10.0,171.63,171.58,34.88]
[1748134670212,10.0,171.63,171.57,6.664]
[1748134670387,10.0,171.58,171.54,1.5761]
[1748134670598,10.0,171.69,171.57,18.79181043]
[1748134670784,10.0,171.66,171.57,18.79181043]
[1748134670988,10.0,171.64,171.57,18.79181043]
[1748134671194,10.0,171.64,171.59,0.14216157]
[1748134671800,10.0,171.64,171.6,34.88]
[1748134672408,10.0,171.64,171.61,34.88]
[1748134673091,10.0,171.65,171.61,34.88]
[1748134673287,10.0,171.64,171.61,34.88]
[1748134674008,10.0,171.6,171.55,0.71477475]
[1748134674213,10.0,171.59,171.56,34.88]
[1748134675013,10.0,171.6,171.56,34.88]
[1748134675206,10.0,171.62,171.56,34.88]
[1748134675712,10.0,171.63,171.56,34.88]
[1748134677003,10.0,171.63,171.57,0.14216157]
[1748134677517,10.0,171.62,171.58,275.82]
[1748134677890,10.0,171.63,171.58,275.82]
[1748134678313,10.0,171.62,171.58,275.82]
[1748134678489,10.0,171.63,171.58,58.18]
[1748134678690,10.0,171.62,171.57,0.14216157]
[1748134679412,10.0,171.63,171.57,0.14216157]
[1748134679594,10.0,171.61,171.57,0.14216157]
[1748134679793,10.0,171.62,171.57,0.14216157]
[1748134679994,10.0,171.61,171.55,0.71477475]
[1748134680191,10.0,171.59,171.55,0.71477475]
[1748134680409,10.0,171.59,171.56,34.88]
[1748134680615,10.0,171.56,171.55,0.71477475]
[1748134680814,10.0,171.56,171.55,35.59477475]
[1748134681618,10.0,171.56,171.55,0.71477475]
[1748134681803,10.0,171.57,171.55,35.59477475]
[1748134682003,26.0,171.67,171.55,0.71477475]
[1748134682004,10.0,171.56,171.55,0.71477475]
[1748134682211,10.0,171.56,171.55,35.59477475]
[1748134682819,10.0,171.58,171.55,35.59477475]
[1748134683011,10.0,171.57,171.55,35.59477475]
[1748134683215,10.0,171.58,171.55,35.59477475]
[1748134683410,10.0,171.56,171.55,0.71477475]
[1748134683603,29.88494517,171.56,171.55,0.71477475]
[1748134683807,10.0,171.56,171.55,35.59477475]
[1748134684011,10.0,171.58,171.55,35.59477475]
[1748134684213,10.0,171.57,171.55,35.59477475]
[1748134684402,10.0,171.56,171.55,35.59477475]
[1748134685026,10.0,171.57,171.55,35.59477475]
[1748134685199,10.0,171.56,171.55,35.59477475]
[1748134686615,10.0,171.56,171.55,0.71477475]
[1748134686916,10.0,171.56,171.55,35.59477475]
[1748134687601,10.0,171.56,171.55,311.47477475]
[1748134687804,10.0,171.57,171.55,93.79477475]
[1748134688126,10.0,171.56,171.55,35.59477475]
[1748134691231,10.0,171.56,171.55,0.71477475]
[1748134691526,26.0,171.67,171.55,0.71477475]
[1748134691527,10.0,171.59,171.55,35.59477475]
[1748134691709,10.0,171.61,171.55,35.59477475]
[1748134692314,10.0,171.64,171.57,1.5494]
[1748134693007,10.0,171.63,171.57,1.5494]
[1748134693202,10.0,171.65,171.58,18.64964886]
[1748134693529,10.0,171.69,171.58,18.64964886]
[1748134693733,10.0,171.7,171.58,18.64964886]
[1748134693913,10.0,171.72,171.61,26.0]
[1748134694118,10.0,171.72,171.65,1.5765]
[1748134694420,10.0,171.75,171.67,18.64964886]
[1748134694944,10.0,171.74,171.68,0.14216157]
[1748134695739,10.0,171.75,171.68,0.14216157]
[1748134696033,10.0,171.78,171.71,0.14216157]
[1748134696339,10.0,171.75,171.71,0.14216157]
[1748134696706,10.0,171.8,171.74,20.36831043]
[1748134696910,10.0,171.79,171.75,34.88]
[1748134697106,10.0,171.79,171.69,7.8278]
[1748134697327,10.0,171.71,171.7,34.88]
[1748134697513,10.0,171.71,171.7,310.74]
[1748134697827,10.0,171.71,171.7,93.08]
[1748134699330,10.0,171.67,171.65,6.5697]
[1748134699524,10.0,171.69,171.66,34.86]
[1748134700320,10.0,171.71,171.66,34.86]
[1748134700537,10.0,171.68,171.66,34.86]
[1748134701040,10.0,171.67,171.66,34.86]
[1748134701422,10.0,171.62,171.61,6.5697]
[1748134701622,10.0,171.62,171.61,41.4297]
[1748134701825,10.0,171.65,171.61,41.4297]
[1748134702132,10.0,171.67,171.62,0.14216157]
[1748134702441,10.0,171.66,171.62,0.14216157]
[1748134703438,10.0,171.65,171.63,34.86]
[1748134704141,26.0,171.77,171.63,34.86]
[1748134704142,10.0,171.64,171.63,34.86]
[1748134704336,10.0,171.63,171.59,1.5984]
[1748134704512,10.0,171.65,171.6,34.86]
[1748134704715,10.0,171.63,171.6,34.86]
[1748134704921,10.0,171.64,171.6,34.86]
[1748134705259,10.0,171.64,171.61,0.14216157]
[1748134705556,10.0,171.64,171.6,34.86]
[1748134706041,10.0,171.65,171.6,34.86]
[1748134706551,10.0,171.64,171.6,34.86]
[1748134707046,10.0,171.65,171.6,34.86]
[1748134707741,10.0,171.63,171.61,217.58]
[1748134707926,10.0,171.62,171.61,217.58]
[1748134708128,10.0,171.62,171.61,310.26]
[1748134708333,10.0,171.62,171.61,92.68]
[1748134708824,10.0,171.62,171.61,34.86]
[1748134709229,10.0,171.57,171.53,8.1341]
[1748134709529,10.0,171.57,171.56,34.86]
[1748134710124,10.0,171.58,171.56,34.86]
[1748134710624,10.0,171.57,171.56,34.86]
[1748134710825,10.0,171.58,171.56,34.86]
[1748134711323,10.0,171.6,171.56,34.86]
[1748134711524,10.0,171.59,171.56,34.86]
[1748134712145,10.0,171.6,171.56,34.86]
[1748134712361,10.0,171.6,171.57,0.14216157]
[1748134712660,10.0,171.64,171.57,0.14216157]
[1748134712830,10.0,171.66,171.57,18.79181043]
[1748134713146,10.0,171.67,171.58,6.6388]
[1748134713344,10.0,171.67,171.6,18.64964886]
[1748134713640,34.15972492,171.84,171.6,18.64964886]
[1748134713641,10.0,171.72,171.6,18.64964886]
[1748134714038,10.0,171.71,171.6,18.64964886]
[1748134714234,10.0,171.68,171.6,18.64964886]
[1748134715031,10.0,171.68,171.63,26.0]
[1748134715231,10.0,171.68,171.64,34.88]
[1748134715433,10.0,171.65,171.59,1.5966]
[1748134715639,10.0,171.64,171.6,34.88]
[1748134716349,36.0,171.77,171.59,27.73876157]
[1748134716350,10.0,171.65,171.61,34.88]
[1748134717350,10.0,171.64,171.61,34.88]
[1748134717652,10.0,171.65,171.62,275.42]
[1748134718357,10.0,171.64,171.62,275.42]
[1748134718846,10.0,171.63,171.59,1.5966]
[1748134719060,10.0,171.61,171.6,34.88]
[1748134719631,10.0,171.59,171.55,0.71477475]
[1748134719857,10.0,171.59,171.56,34.88]
[1748134721245,10.0,171.57,171.56,34.88]
[1748134721445,36.0,171.7,171.55,0.71477475]
[1748134721446,10.0,171.56,171.55,0.71477475]
[1748134721746,10.0,171.56,171.55,35.59477475]
[1748134722436,29.88506703,171.56,171.55,0.71477475]
[1748134722627,29.88506703,171.56,171.55,35.59477475]
[1748134722831,62.75247421,171.56,171.47,13.02108896]
[1748134723156,48.53471589,171.48,171.47,13.02108896]
[1748134723486,58.53471589,171.48,171.47,47.90108896]
[1748134723647,99.36055705,171.48,171.47,13.02108896]
[1748134723953,119.4361538,171.48,171.47,13.02108896]
[1748134724140,58.72524561,171.48,171.47,47.90108896]
[1748134724339,40.07559675,171.48,171.47,47.90108896]
[1748134724658,70.35997006,171.48,171.47,47.90108896]
[1748134725239,129.29399223,171.48,171.47,47.90108896]
[1748134725766,99.00961892,171.48,171.47,47.90108896]
[1748134725942,58.72524561,171.48,171.47,47.90108896]
[1748134726140,89.00961892,171.48,171.47,47.90108896]
[1748134726354,129.29399223,171.48,171.47,47.90108896]
[1748134726654,119.29399223,171.48,171.47,47.90108896]
[1748134726843,129.29399223,171.48,171.47,47.90108896]
[1748134727042,129.29399223,171.48,171.47,13.02108896]
[1748134727262,68.72524561,171.48,171.47,47.92108896]
[1748134727453,129.29399223,171.48,171.47,323.50108896]
[1748134727649,119.29399223,171.48,171.47,288.60108896]
[1748134727846,119.29399223,171.48,171.47,323.50108896]
[1748134728072,129.29399223,171.48,171.47,323.50108896]
[1748134728270,119.29399223,171.48,171.47,323.50108896]
[1748134728471,14.07559675,171.48,171.47,323.50108896]
[1748134728647,14.07559675,171.48,171.47,105.78108896]
[1748134728945,44.35997006,171.48,171.47,105.78108896]
[1748134729146,40.28437331,171.48,171.47,105.78108896]
[1748134729367,10.0,171.48,171.47,47.92108896]
[1748134730750,30.28437331,171.56,171.47,47.92108896]
[1748134730751,10.0,171.5,171.47,47.92108896]
[1748134730949,10.0,171.51,171.47,47.92108896]
[1748134731244,10.0,171.55,171.48,0.14216157]
[1748134732062,10.0,171.58,171.48,18.79181043]
[1748134732247,10.0,171.6,171.5,25.43061043]
[1748134732449,14.00060296,171.73,171.5,25.43061043]
[1748134732450,10.0,171.62,171.5,25.43061043]
[1748134732651,4.00060296,171.73,171.5,25.43061043]
[1748134732652,10.0,171.63,171.58,0.14216157]
[1748134732864,4.00060296,171.73,171.57,26.0]
[1748134732865,10.0,171.65,171.59,34.9]
[1748134733077,10.0,171.63,171.59,34.9]
[1748134733374,10.0,171.67,171.6,0.14216157]
[1748134733545,10.0,171.66,171.6,0.14216157]
[1748134733746,10.0,171.65,171.6,0.14216157]
[1748134734071,10.0,171.67,171.6,0.14216157]
[1748134734570,10.0,171.66,171.63,6.4425]
[1748134734743,10.0,171.7,171.63,6.4425]
[1748134734947,10.0,171.69,171.63,6.4425]
[1748134735361,10.0,171.71,171.63,6.4425]
[1748134735672,10.0,171.71,171.66,26.0]
[1748134735978,10.0,171.73,171.67,34.9]
[1748134736273,10.0,171.7,171.67,34.9]
[1748134736569,10.0,171.71,171.67,34.9]
[1748134736783,10.0,171.73,171.67,34.9]
[1748134737245,10.0,171.73,171.68,0.14216157]
[1748134737456,10.0,171.73,171.69,275.14]
[1748134737663,10.0,171.74,171.69,275.14]
[1748134737873,10.0,171.77,171.67,53.54964886]
[1748134738169,29.95545672,172.01,171.67,53.54964886]
[1748134738170,10.0,171.8,171.69,0.14216157]
[1748134738504,10.0,171.8,171.71,18.79181043]
[1748134738657,10.0,171.81,171.71,18.79181043]
[1748134739184,30.28437331,171.96,171.73,18.79181043]
[1748134739185,10.0,171.83,171.73,18.79181043]
[1748134739375,10.0,171.83,171.75,18.79181043]
[1748134739586,10.0,171.82,171.76,26.0]
[1748134739746,10.0,171.81,171.76,26.0]
[1748134739951,10.0,171.81,171.77,26.0]
[1748134740482,10.0,171.76,171.72,6.5934]
[1748134740685,10.0,171.76,171.73,34.88]
[1748134741093,10.0,171.74,171.73,34.88]
[1748134741293,10.0,171.74,171.72,6.5934]
[1748134741585,10.0,171.73,171.72,6.5934]
[1748134741752,10.0,171.73,171.72,41.4734]
[1748134742269,10.0,171.74,171.72,41.4734]
[1748134742478,10.0,171.73,171.72,41.4734]
[1748134742682,10.0,171.72,171.7,1.6396]
[1748134742996,10.0,171.72,171.71,34.86]
[1748134743594,10.0,171.72,171.65,6.5934]
[1748134743777,10.0,171.67,171.66,34.86]
[1748134743979,10.0,171.69,171.66,34.86]
[1748134744176,10.0,171.67,171.66,34.86]
[1748134744485,10.0,171.68,171.66,34.86]
[1748134744797,10.0,171.67,171.66,34.86]
[1748134745393,10.0,171.67,171.63,1.572]
[1748134745596,10.0,171.65,171.64,34.86]
[1748134746292,10.0,171.77,171.59,6.3704]
[1748134746293,10.0,171.6,171.59,6.3704]
[1748134746467,10.0,171.6,171.59,41.2304]
[1748134746785,10.0,171.66,171.6,0.14216157]
[1748134746967,10.0,171.67,171.6,0.14216157]
[1748134747168,10.0,171.68,171.6,0.14216157]
[1748134747383,10.0,171.69,171.6,0.14216157]
[1748134747568,10.0,171.65,171.61,275.0]
[1748134747757,10.0,171.64,171.61,57.44]
[1748134748488,10.0,171.62,171.59,41.2304]
[1748134748659,10.0,171.63,171.59,41.2304]
[1748134748860,10.0,171.63,171.59,6.3704]
[1748134749059,10.0,171.63,171.6,34.86]
[1748134749492,10.0,171.65,171.6,34.86]
[1748134750076,10.0,171.67,171.6,34.86]
[1748134750893,10.0,171.66,171.6,34.86]
[1748134751193,26.0,171.74,171.59,6.3704]
[1748134751194,10.0,171.64,171.59,6.3704]
[1748134751406,10.0,171.61,171.6,34.86]
[1748134751768,10.0,171.62,171.6,34.86]
[1748134752088,10.0,171.6,171.59,6.3704]
[1748134752282,10.0,171.6,171.59,41.2504]
[1748134752796,26.0,171.71,171.56,1.572]
[1748134752797,10.0,171.59,171.56,1.572]
[1748134753013,10.0,171.53,171.52,6.4576]
[1748134753303,10.0,171.54,171.53,34.88]
[1748134753511,10.0,171.56,171.53,34.88]
[1748134753686,10.0,171.58,171.53,34.88]
[1748134754383,10.0,171.59,171.54,0.14216157]
[1748134754681,10.0,171.58,171.54,0.14216157]
[1748134754877,10.0,171.59,171.54,0.14216157]
[1748134755110,10.0,171.61,171.54,0.14216157]
[1748134755290,10.0,171.61,171.54,18.79181043]
[1748134756098,10.0,171.63,171.54,18.79181043]
[1748134756302,10.0,171.62,171.54,18.79181043]
[1748134757008,10.0,171.63,171.54,18.79181043]
[1748134757186,26.0,171.72,171.54,18.79181043]
[1748134757187,10.0,171.65,171.54,18.79181043]
[1748134757376,10.0,171.64,171.54,18.79181043]
[1748134757575,10.0,171.62,171.56,18.79181043]
[1748134757802,10.0,171.65,171.56,18.79181043]
[1748134758177,30.28437331,171.7,171.56,18.79181043]
[1748134758178,10.0,171.64,171.56,18.79181043]
[1748134758376,10.0,171.62,171.56,18.79181043]
[1748134758580,10.0,171.64,171.56,18.79181043]
[1748134758801,10.0,171.63,171.56,18.79181043]
[1748134760289,10.0,171.65,171.56,18.79181043]
[1748134760615,10.0,171.67,171.58,18.64964886]
[1748134760793,10.0,171.67,171.61,26.0]
[1748134760992,10.0,171.67,171.62,34.88]
[1748134761614,10.0,171.68,171.62,34.88]
[1748134761911,10.0,171.66,171.62,34.88]
[1748134762111,10.0,171.67,171.62,34.88]
[1748134762417,0.14216157,171.82,171.62,34.88]
[1748134762418,10.0,171.73,171.64,6.4599]
[1748134762610,10.0,171.75,171.66,26.0]
[1748134762793,10.0,171.76,171.66,26.0]
[1748134762992,10.0,171.74,171.66,26.0]
[1748134763515,10.0,171.76,171.67,18.79181043]
[1748134763816,10.0,171.76,171.68,1.6574]
[1748134764203,30.28437331,171.83,171.68,1.6574]
[1748134764204,10.0,171.77,171.69,0.14216157]
[1748134764402,10.0,171.77,171.7,34.88]
[1748134764602,10.0,171.79,171.71,0.14216157]
[1748134764809,10.0,171.76,171.71,0.14216157]
[1748134765205,10.0,171.77,171.71,0.14216157]
[1748134765531,10.0,171.79,171.71,0.14216157]
[1748134765824,10.0,171.8,171.71,18.79181043]
[1748134765998,10.0,171.79,171.71,18.79181043]
[1748134766201,10.0,171.83,171.73,18.64964886]
[1748134766399,10.0,171.87,171.73,18.64964886]
[1748134766601,10.0,171.84,171.73,18.64964886]
[1748134767508,10.0,171.86,171.75,18.64964886]
[1748134767903,10.0,171.83,171.78,26.0]
[1748134768105,10.0,171.83,171.79,34.86]
[1748134768409,10.0,171.86,171.79,34.86]
[1748134768608,10.0,171.81,171.8,34.86]
[1748134769728,10.0,171.79,171.74,26.0]
[1748134769913,10.0,171.79,171.75,34.86]
[1748134770411,10.0,171.77,171.75,34.86]
[1748134771235,10.0,171.76,171.75,34.86]
[1748134773026,10.0,171.77,171.72,6.3992]
[1748134773326,10.0,171.75,171.73,34.86]
[1748134773531,10.0,171.76,171.73,34.86]
[1748134773732,10.0,171.78,171.73,34.86]
[1748134773933,10.0,171.79,171.73,34.86]
[1748134774236,26.0,171.89,171.73,34.86]
[1748134774237,10.0,171.8,171.73,34.86]
[1748134774832,10.0,171.79,171.73,34.86]
[1748134775033,10.0,171.82,171.74,44.64964886]
[1748134775713,10.0,171.83,171.74,44.64964886]
[1748134775907,10.0,171.82,171.74,44.64964886]
[1748134776112,10.0,171.83,171.75,0.14216157]
[1748134776416,10.0,171.81,171.75,0.14216157]
[1748134776933,10.0,171.8,171.75,0.14216157]
[1748134777230,10.0,171.83,171.75,0.14216157]
[1748134777444,10.0,171.79,171.75,26.0]
[1748134777742,10.0,171.79,171.76,309.34]
[1748134777905,10.0,171.79,171.76,34.86]
[1748134778531,10.0,171.81,171.76,34.86]
[1748134778712,10.0,171.79,171.76,34.86]
[1748134779941,10.0,171.78,171.72,6.3992]
[1748134780313,10.0,171.76,171.73,34.84]
[1748134780717,10.0,171.76,171.72,6.3992]
[1748134780949,10.0,171.76,171.74,34.84]
[1748134781230,10.0,171.77,171.74,34.84]
[1748134781434,10.0,171.76,171.74,34.84]
[1748134781645,10.0,171.81,171.74,34.84]
[1748134781949,10.0,171.82,171.74,34.84]
[1748134782111,10.0,171.81,171.74,34.84]
[1748134783134,10.0,171.84,171.78,1.5032]